[Event "Early-Titled-Tuesday-Blitz-April-23-2024"]
[Site "Chess.com"]
[Date "2024.04.23"]
[Round "7"]
[White "DonJuanEGenaro"]
[Black "Nikita_Klepikov"]
[Result "1-0"]
[WhiteElo "2050"]
[BlackElo "2344"]
[TimeControl "180+1"]
[EndTime "9:17:31 PDT"]
[Termination "DonJuanEGenaro won by resignation"]

1. d4 {[%clk 0:02:58.2]} 1... Nf6 {[%clk 0:02:59.4]} 2. Nf3 {[%clk 0:02:58.3]}
2... d6 {[%clk 0:02:59.6]} 3. Bf4 {[%clk 0:02:57.7]} 3... b6 {[%clk 0:02:58.8]}
4. e3 {[%clk 0:02:57.5]} 4... Bb7 {[%clk 0:02:59]} 5. Bc4 {[%clk 0:02:56.9]}
5... h6 {[%clk 0:02:52.5]} 6. h3 {[%clk 0:02:55.2]} 6... e6 {[%clk 0:02:47.7]}
7. a4 {[%clk 0:02:50.2]} 7... a6 {[%clk 0:02:43.8]} 8. Nbd2 {[%clk 0:02:48.6]}
8... Nbd7 {[%clk 0:02:38]} 9. Qe2 {[%clk 0:02:46.6]} 9... d5 {[%clk 0:02:22.9]}
10. Bd3 {[%clk 0:02:43]} 10... c5 {[%clk 0:02:21.7]} 11. c3 {[%clk 0:02:42.7]}
11... Be7 {[%clk 0:02:16.1]} 12. O-O {[%clk 0:02:34.2]} 12... O-O {[%clk
0:02:11.8]} 13. e4 {[%clk 0:02:31.2]} 13... dxe4 {[%clk 0:02:07.3]} 14. Nxe4
{[%clk 0:02:30.7]} 14... Nxe4 {[%clk 0:02:06.9]} 15. Bxe4 {[%clk 0:02:30.8]}
15... Bxe4 {[%clk 0:02:06.2]} 16. Qxe4 {[%clk 0:02:30.6]} 16... cxd4 {[%clk
0:01:50.1]} 17. Qxd4 {[%clk 0:02:19.3]} 17... Bc5 {[%clk 0:01:45.7]} 18. Qc4
{[%clk 0:02:07.9]} 18... Qc8 {[%clk 0:01:21.1]} 19. Qd3 {[%clk 0:02:01.4]} 19...
Rd8 {[%clk 0:01:15.4]} 20. Rfd1 {[%clk 0:01:56.4]} 20... Nf6 {[%clk 0:00:57.5]}
21. Qe2 {[%clk 0:01:55.8]} 21... Qb7 {[%clk 0:00:53]} 22. b4 {[%clk 0:01:51.1]}
22... Be7 {[%clk 0:00:50.2]} 23. Ne5 {[%clk 0:01:48.3]} 23... Nd5 {[%clk
0:00:48.3]} 24. Qf3 {[%clk 0:01:45.7]} 24... Nxf4 {[%clk 0:00:43.3]} 25. Qxb7
{[%clk 0:01:43.7]} 1-0

[Event "Early-Titled-Tuesday-Blitz-April-23-2024"]
[Site "Chess.com"]
[Date "2024.04.23"]
[Round "7"]
[White "LeRoidesChampions"]
[Black "Silvederione"]
[Result "0-1"]
[WhiteElo "2607"]
[BlackElo "2493"]
[TimeControl "180+1"]
[EndTime "9:17:40 PDT"]
[Termination "Silvederione won by resignation"]

1. d4 {[%clk 0:03:00.9]} 1... Nf6 {[%clk 0:02:56.8]} 2. Nc3 {[%clk 0:03:00.6]}
2... d5 {[%clk 0:02:56.2]} 3. Bf4 {[%clk 0:03:01.1]} 3... c5 {[%clk 0:02:56.7]}
4. e4 {[%clk 0:02:59.5]} 4... Nxe4 {[%clk 0:02:52.3]} 5. Nxe4 {[%clk 0:02:59.4]}
5... dxe4 {[%clk 0:02:53.2]} 6. dxc5 {[%clk 0:03:00.2]} 6... Qa5+ {[%clk
0:02:49]} 7. c3 {[%clk 0:03:00.2]} 7... Qxc5 {[%clk 0:02:49.2]} 8. Qa4+ {[%clk
0:03:00.8]} 8... Nc6 {[%clk 0:02:48.9]} 9. Qxe4 {[%clk 0:03:01.3]} 9... g6
{[%clk 0:02:49.2]} 10. Nf3 {[%clk 0:03:00.7]} 10... Bg7 {[%clk 0:02:49.3]} 11.
Qe3 {[%clk 0:02:57.5]} 11... Qa5 {[%clk 0:02:44.2]} 12. h4 {[%clk 0:02:53.7]}
12... h5 {[%clk 0:02:38.4]} 13. Bc4 {[%clk 0:02:51.9]} 13... O-O {[%clk
0:02:38]} 14. Rd1 {[%clk 0:02:38.8]} 14... Bg4 {[%clk 0:02:36]} 15. O-O {[%clk
0:02:36.6]} 15... e5 {[%clk 0:02:23.9]} 16. Bh6 {[%clk 0:02:27]} 16... Bxf3
{[%clk 0:01:24.4]} 17. Bxg7 {[%clk 0:02:26.3]} 17... Kxg7 {[%clk 0:01:18.7]} 18.
Qxf3 {[%clk 0:02:26.2]} 18... Rad8 {[%clk 0:01:14]} 19. Rxd8 {[%clk 0:02:23.2]}
19... Qxd8 {[%clk 0:01:11.5]} 20. Rd1 {[%clk 0:02:22.3]} 20... Qxh4 {[%clk
0:01:11.2]} 21. Rd7 {[%clk 0:02:20.7]} 21... Qxc4 {[%clk 0:01:10.3]} 22. Rxb7
{[%clk 0:02:16.1]} 22... e4 {[%clk 0:01:10.4]} 23. Qe3 {[%clk 0:02:16]} 23...
Rd8 {[%clk 0:01:01.9]} 24. b3 {[%clk 0:02:15.9]} 24... Rd1+ {[%clk 0:00:58.8]}
25. Kh2 {[%clk 0:02:15.8]} 25... Qe6 {[%clk 0:00:58.8]} 26. c4 {[%clk 0:02:14]}
26... Qe5+ {[%clk 0:00:55.6]} 27. g3 {[%clk 0:02:14]} 27... Nd4 {[%clk
0:00:54.8]} 28. f4 {[%clk 0:02:06.4]} 28... Nf3+ {[%clk 0:00:49.4]} 29. Qxf3
{[%clk 0:02:01.6]} 29... exf3 {[%clk 0:00:36.8]} 30. fxe5 {[%clk 0:01:59.2]}
30... f2 {[%clk 0:00:37.2]} 31. e6 {[%clk 0:01:57.9]} 31... f1=Q {[%clk
0:00:37.5]} 32. Rxf7+ {[%clk 0:01:58.1]} 32... Qxf7 {[%clk 0:00:37.4]} 33. exf7
{[%clk 0:01:59]} 33... Kxf7 {[%clk 0:00:38.3]} 0-1

[Event "Early-Titled-Tuesday-Blitz-April-23-2024"]
[Site "Chess.com"]
[Date "2024.04.23"]
[Round "7"]
[White "js20000"]
[Black "JiaHaoxiang"]
[Result "0-1"]
[WhiteElo "2727"]
[BlackElo "2594"]
[TimeControl "180+1"]
[EndTime "9:17:41 PDT"]
[Termination "JiaHaoxiang won by resignation"]

1. b3 {[%clk 0:03:00.9]} 1... b6 {[%clk 0:02:38.3]} 2. Bb2 {[%clk 0:03:00.5]}
2... Bb7 {[%clk 0:02:39.1]} 3. Nf3 {[%clk 0:03:00.3]} 3... e6 {[%clk 0:02:39.5]}
4. g3 {[%clk 0:02:59.9]} 4... Nf6 {[%clk 0:02:40.1]} 5. Bg2 {[%clk 0:03:00]}
5... c5 {[%clk 0:02:40.8]} 6. O-O {[%clk 0:03:00.4]} 6... Be7 {[%clk 0:02:40.8]}
7. c4 {[%clk 0:03:00.5]} 7... O-O {[%clk 0:02:39.5]} 8. d4 {[%clk 0:03:00.2]}
8... cxd4 {[%clk 0:02:39.5]} 9. Qxd4 {[%clk 0:03:00.8]} 9... Nc6 {[%clk
0:02:38.9]} 10. Qc3 {[%clk 0:02:52]} 10... Rc8 {[%clk 0:02:34.5]} 11. Rd1 {[%clk
0:02:46.5]} 11... d5 {[%clk 0:02:27.5]} 12. Qe1 {[%clk 0:02:44.9]} 12... Qc7
{[%clk 0:02:24.6]} 13. cxd5 {[%clk 0:02:41.6]} 13... Nxd5 {[%clk 0:02:24.7]} 14.
Nc3 {[%clk 0:02:41.5]} 14... Ncb4 {[%clk 0:02:20.9]} 15. Rac1 {[%clk 0:02:37.7]}
15... Nxc3 {[%clk 0:02:20.8]} 16. Rxc3 {[%clk 0:02:25.6]} 16... Qb8 {[%clk
0:02:20.7]} 17. Rd7 {[%clk 0:02:04.4]} 17... Nd5 {[%clk 0:01:55.5]} 18. Rd3
{[%clk 0:01:49.5]} 18... Bc6 {[%clk 0:01:50.4]} 19. R3xd5 {[%clk 0:01:48.2]}
19... Bxd5 {[%clk 0:01:46.9]} 20. Rxe7 {[%clk 0:01:47.3]} 20... Rc2 {[%clk
0:01:46]} 21. Be5 {[%clk 0:01:46.6]} 21... Qc8 {[%clk 0:01:42.2]} 22. Qb4 {[%clk
0:01:43.1]} 22... Rc1+ {[%clk 0:01:38.4]} 23. Bf1 {[%clk 0:01:42.2]} 23... Qc2
{[%clk 0:01:33.5]} 24. Rc7 {[%clk 0:01:18.6]} 24... Qxe2 {[%clk 0:01:20.4]} 25.
Nd2 {[%clk 0:01:04.8]} 25... Rxf1+ {[%clk 0:01:11]} 26. Nxf1 {[%clk 0:01:05.6]}
26... Qf3 {[%clk 0:01:11.1]} 0-1

[Event "Early-Titled-Tuesday-Blitz-April-23-2024"]
[Site "Chess.com"]
[Date "2024.04.23"]
[Round "7"]
[White "shirovin"]
[Black "mary-sanna"]
[Result "0-1"]
[WhiteElo "2053"]
[BlackElo "2254"]
[TimeControl "180+1"]
[EndTime "9:17:49 PDT"]
[Termination "mary-sanna won on time"]

1. e4 {[%clk 0:03:00.9]} 1... c5 {[%clk 0:02:59.4]} 2. Nf3 {[%clk 0:02:57.9]}
2... Nc6 {[%clk 0:02:59.6]} 3. d4 {[%clk 0:02:57.7]} 3... cxd4 {[%clk
0:03:00.5]} 4. Nxd4 {[%clk 0:02:58]} 4... g6 {[%clk 0:03:01.1]} 5. c4 {[%clk
0:02:57.3]} 5... Bg7 {[%clk 0:03:01.2]} 6. Be3 {[%clk 0:02:56.6]} 6... Qb6
{[%clk 0:02:58.9]} 7. Nc3 {[%clk 0:02:32.2]} 7... Bxd4 {[%clk 0:02:45.6]} 8.
Bxd4 {[%clk 0:02:13.9]} 8... Qxd4 {[%clk 0:02:44.9]} 9. Qf3 {[%clk 0:02:02.4]}
9... Nf6 {[%clk 0:02:35.9]} 10. Nb5 {[%clk 0:02:00.8]} 10... Qxb2 {[%clk
0:02:15.5]} 11. Rd1 {[%clk 0:01:56.9]} 11... Qb4+ {[%clk 0:02:09.7]} 12. Rd2
{[%clk 0:01:52.9]} 12... Qa5 {[%clk 0:02:07]} 13. Bd3 {[%clk 0:01:33.2]} 13...
d6 {[%clk 0:02:03.4]} 14. Ke2 {[%clk 0:01:30.8]} 14... Bg4 {[%clk 0:02:02.7]}
15. Qxg4 {[%clk 0:00:08.3]} 15... Nxg4 {[%clk 0:02:02.1]} 16. f3 {[%clk
0:00:08.6]} 16... Nge5 {[%clk 0:02:01.7]} 17. Rhd1 {[%clk 0:00:07.3]} 17... Nxd3
{[%clk 0:02:00.7]} 18. Rxd3 {[%clk 0:00:07]} 18... O-O {[%clk 0:01:59]} 19. f4
{[%clk 0:00:05.6]} 19... a6 {[%clk 0:01:59]} 20. Nc3 {[%clk 0:00:03.9]} 20...
Nb4 {[%clk 0:01:57.9]} 21. Rg3 {[%clk 0:00:01.8]} 21... Qh5+ {[%clk 0:01:50.6]}
0-1

[Event "Early-Titled-Tuesday-Blitz-April-23-2024"]
[Site "Chess.com"]
[Date "2024.04.23"]
[Round "7"]
[White "stratacticos"]
[Black "Maria_Elayza"]
[Result "0-1"]
[WhiteElo "1864"]
[BlackElo "2170"]
[TimeControl "180+1"]
[EndTime "9:17:52 PDT"]
[Termination "Maria_Elayza won by resignation"]

1. b4 {[%clk 0:03:00.2]} 1... d5 {[%clk 0:02:59.2]} 2. Bb2 {[%clk 0:02:58.2]}
2... Nf6 {[%clk 0:02:59.2]} 3. Nf3 {[%clk 0:02:53.4]} 3... e6 {[%clk 0:02:59.2]}
4. a3 {[%clk 0:02:52.5]} 4... c5 {[%clk 0:02:57.9]} 5. b5 {[%clk 0:02:50.9]}
5... Bd7 {[%clk 0:02:54.4]} 6. e3 {[%clk 0:02:45.8]} 6... Qb6 {[%clk 0:02:52.5]}
7. a4 {[%clk 0:02:45]} 7... c4 {[%clk 0:02:46.2]} 8. Bd4 {[%clk 0:02:40.9]} 8...
Bc5 {[%clk 0:02:43.8]} 9. Nc3 {[%clk 0:02:34.4]} 9... a6 {[%clk 0:02:36.8]} 10.
a5 {[%clk 0:02:27.5]} 10... Qc7 {[%clk 0:02:35.6]} 11. b6 {[%clk 0:02:20.1]}
11... Qc8 {[%clk 0:02:34.8]} 12. Bxc5 {[%clk 0:01:58.2]} 12... Qxc5 {[%clk
0:02:35.7]} 13. Ne5 {[%clk 0:01:46.6]} 13... O-O {[%clk 0:02:31.1]} 14. Be2
{[%clk 0:01:45.2]} 14... Nc6 {[%clk 0:02:30.5]} 15. Nxc6 {[%clk 0:01:34.7]}
15... Bxc6 {[%clk 0:02:25]} 16. Bf3 {[%clk 0:01:34.5]} 16... d4 {[%clk
0:02:21.4]} 17. Bxc6 {[%clk 0:01:32.2]} 17... Qxc6 {[%clk 0:02:21.5]} 18. Ne2
{[%clk 0:01:29.2]} 18... d3 {[%clk 0:02:15.9]} 19. Nf4 {[%clk 0:01:26.1]} 19...
e5 {[%clk 0:02:13.9]} 20. Nh5 {[%clk 0:01:14.3]} 20... Qxg2 {[%clk 0:01:49]} 21.
Nxf6+ {[%clk 0:01:13.5]} 21... gxf6 {[%clk 0:01:49.9]} 22. Rf1 {[%clk
0:01:13.1]} 22... Kh8 {[%clk 0:01:49.4]} 23. cxd3 {[%clk 0:01:11.8]} 23... cxd3
{[%clk 0:01:48.5]} 24. Qb3 {[%clk 0:01:09.9]} 24... Qg6 {[%clk 0:01:39.5]} 25.
O-O-O {[%clk 0:01:05.8]} 25... Rac8+ {[%clk 0:01:37.7]} 26. Kb1 {[%clk 0:01:05]}
26... Rc5 {[%clk 0:01:37.5]} 27. Rg1 {[%clk 0:00:55.2]} 27... Qe4 {[%clk
0:01:29.5]} 28. Ka2 {[%clk 0:00:53]} 28... Rxa5+ {[%clk 0:01:28.3]} 29. Kb2
{[%clk 0:00:49.7]} 29... Rb5 {[%clk 0:01:28.6]} 0-1

[Event "Early-Titled-Tuesday-Blitz-April-23-2024"]
[Site "Chess.com"]
[Date "2024.04.23"]
[Round "7"]
[White "Let_it_be_1"]
[Black "thesupera12"]
[Result "0-1"]
[WhiteElo "2614"]
[BlackElo "2456"]
[TimeControl "180+1"]
[EndTime "9:17:53 PDT"]
[Termination "thesupera12 won by resignation"]

1. e4 {[%clk 0:03:00.9]} 1... d5 {[%clk 0:02:56.7]} 2. exd5 {[%clk 0:03:00.7]}
2... Qxd5 {[%clk 0:02:57.6]} 3. Nc3 {[%clk 0:03:00.6]} 3... Qa5 {[%clk
0:02:58.5]} 4. Nf3 {[%clk 0:03:00.4]} 4... Nf6 {[%clk 0:02:59.2]} 5. d4 {[%clk
0:03:00.6]} 5... Bg4 {[%clk 0:02:59.8]} 6. h3 {[%clk 0:02:59.1]} 6... Bh5 {[%clk
0:02:59.4]} 7. g4 {[%clk 0:02:59.3]} 7... Bg6 {[%clk 0:03:00.1]} 8. Ne5 {[%clk
0:02:59.3]} 8... c6 {[%clk 0:02:59.8]} 9. Bg2 {[%clk 0:02:58.4]} 9... Nbd7
{[%clk 0:03:00.1]} 10. Qe2 {[%clk 0:02:50.4]} 10... O-O-O {[%clk 0:02:59]} 11.
h4 {[%clk 0:02:45.4]} 11... h5 {[%clk 0:02:56.6]} 12. Nxg6 {[%clk 0:02:41.7]}
12... fxg6 {[%clk 0:02:54.6]} 13. g5 {[%clk 0:02:42]} 13... Nd5 {[%clk
0:02:50.5]} 14. Bxd5 {[%clk 0:02:23]} 14... cxd5 {[%clk 0:02:48.8]} 15. Qe6
{[%clk 0:02:23.2]} 15... Qb6 {[%clk 0:02:44.9]} 16. Qxd5 {[%clk 0:02:01.2]}
16... e6 {[%clk 0:02:34.2]} 17. Qc4+ {[%clk 0:02:00.1]} 17... Kb8 {[%clk
0:02:34.7]} 18. Bf4+ {[%clk 0:01:57.7]} 18... Bd6 {[%clk 0:02:34.8]} 19. Bxd6+
{[%clk 0:01:37.7]} 19... Qxd6 {[%clk 0:02:34.3]} 20. O-O-O {[%clk 0:01:36.6]}
20... Rhf8 {[%clk 0:02:34]} 21. Kb1 {[%clk 0:01:33.2]} 21... Nb6 {[%clk
0:02:26.2]} 22. Qd3 {[%clk 0:01:32.4]} 22... Rf4 {[%clk 0:02:22.6]} 23. Qxg6
{[%clk 0:01:07.7]} 23... Rxd4 {[%clk 0:02:18.7]} 24. Qxh5 {[%clk 0:01:06.8]}
24... Nc4 {[%clk 0:02:12]} 25. Rxd4 {[%clk 0:01:01.5]} 25... Qxd4 {[%clk
0:02:12]} 26. Rd1 {[%clk 0:01:01.6]} 26... Nd2+ {[%clk 0:02:09.6]} 27. Ka1
{[%clk 0:00:59.7]} 27... Qxf2 {[%clk 0:02:09.1]} 28. Qe2 {[%clk 0:00:48.1]}
28... Qxe2 {[%clk 0:01:43.4]} 29. Nxe2 {[%clk 0:00:47.9]} 29... Nb3+ {[%clk
0:01:43.4]} 30. axb3 {[%clk 0:00:48.3]} 30... Rxd1+ {[%clk 0:01:43.8]} 31. Ka2
{[%clk 0:00:48.9]} 31... Rh1 {[%clk 0:01:40.6]} 32. Nf4 {[%clk 0:00:46.9]} 32...
e5 {[%clk 0:01:37.3]} 33. Ne6 {[%clk 0:00:46.2]} 33... e4 {[%clk 0:01:35.7]} 34.
Nxg7 {[%clk 0:00:42.5]} 34... e3 {[%clk 0:01:36.2]} 35. Nf5 {[%clk 0:00:42.4]}
35... e2 {[%clk 0:01:36.1]} 0-1

[Event "Early-Titled-Tuesday-Blitz-April-23-2024"]
[Site "Chess.com"]
[Date "2024.04.23"]
[Round "7"]
[White "DarZay"]
[Black "mortngabriel"]
[Result "1-0"]
[WhiteElo "2319"]
[BlackElo "2446"]
[TimeControl "180+1"]
[EndTime "9:17:56 PDT"]
[Termination "DarZay won by resignation"]

1. e4 {[%clk 0:02:51.1]} 1... c5 {[%clk 0:02:59.8]} 2. f4 {[%clk 0:02:39.3]}
2... d5 {[%clk 0:02:59.6]} 3. exd5 {[%clk 0:02:37.3]} 3... Qxd5 {[%clk
0:02:58.8]} 4. Nf3 {[%clk 0:02:31.8]} 4... Nf6 {[%clk 0:02:56.3]} 5. Nc3 {[%clk
0:02:31.1]} 5... Qd8 {[%clk 0:02:55.3]} 6. Bb5+ {[%clk 0:02:30]} 6... Bd7 {[%clk
0:02:54.9]} 7. Bxd7+ {[%clk 0:02:28.4]} 7... Qxd7 {[%clk 0:02:51.5]} 8. O-O
{[%clk 0:02:27.4]} 8... Nc6 {[%clk 0:02:51.1]} 9. d3 {[%clk 0:02:27.3]} 9... e6
{[%clk 0:02:49.7]} 10. Kh1 {[%clk 0:02:22.4]} 10... Be7 {[%clk 0:02:46.6]} 11.
Ne5 {[%clk 0:02:21.7]} 11... Qc8 {[%clk 0:02:17.7]} 12. Qf3 {[%clk 0:02:08.7]}
12... Nd4 {[%clk 0:02:15.5]} 13. Qf2 {[%clk 0:02:08.4]} 13... O-O {[%clk
0:01:51.7]} 14. Be3 {[%clk 0:02:03.9]} 14... Nf5 {[%clk 0:01:41.4]} 15. Ne4
{[%clk 0:02:00.5]} 15... Nxe3 {[%clk 0:00:47.8]} 16. Qxe3 {[%clk 0:02:00]} 16...
b6 {[%clk 0:00:47.6]} 17. Qf3 {[%clk 0:01:54.2]} 17... Qc7 {[%clk 0:00:46.3]}
18. Nc6 {[%clk 0:01:50.4]} 18... Rac8 {[%clk 0:00:34.4]} 19. Nxe7+ {[%clk
0:01:49.2]} 19... Qxe7 {[%clk 0:00:34.5]} 20. Rae1 {[%clk 0:01:47.8]} 20... Rfd8
{[%clk 0:00:29.3]} 21. f5 {[%clk 0:01:47.7]} 21... e5 {[%clk 0:00:29.5]} 22. Qg3
{[%clk 0:01:43.4]} 22... Nd5 {[%clk 0:00:24.8]} 23. f6 {[%clk 0:01:41]} 23...
Qf8 {[%clk 0:00:23.5]} 24. Qxe5 {[%clk 0:01:27.5]} 24... Re8 {[%clk 0:00:23.6]}
25. Qxd5 {[%clk 0:01:27.2]} 1-0

[Event "Early-Titled-Tuesday-Blitz-April-23-2024"]
[Site "Chess.com"]
[Date "2024.04.23"]
[Round "7"]
[White "FuenfgegenWilly"]
[Black "AlphaGoosee"]
[Result "0-1"]
[WhiteElo "2484"]
[BlackElo "2635"]
[TimeControl "180+1"]
[EndTime "9:17:57 PDT"]
[Termination "AlphaGoosee won by resignation"]

1. e4 {[%clk 0:03:00.9]} 1... c5 {[%clk 0:03:00.4]} 2. Nc3 {[%clk 0:03:01.1]}
2... d6 {[%clk 0:03:01]} 3. f4 {[%clk 0:03:01.5]} 3... g6 {[%clk 0:02:59.7]} 4.
Nf3 {[%clk 0:03:01.9]} 4... Bg7 {[%clk 0:03:00.2]} 5. Bb5+ {[%clk 0:03:02.5]}
5... Bd7 {[%clk 0:03:00.3]} 6. Bc4 {[%clk 0:03:03]} 6... Nc6 {[%clk 0:02:58.5]}
7. O-O {[%clk 0:03:01.7]} 7... e6 {[%clk 0:02:51]} 8. f5 {[%clk 0:03:01.4]} 8...
Nf6 {[%clk 0:02:51]} 9. fxe6 {[%clk 0:02:58.5]} 9... Bxe6 {[%clk 0:02:51]} 10.
Bxe6 {[%clk 0:02:57.1]} 10... fxe6 {[%clk 0:02:51.9]} 11. e5 {[%clk 0:02:47.9]}
11... Nxe5 {[%clk 0:02:36.6]} 12. Nxe5 {[%clk 0:02:44.4]} 12... dxe5 {[%clk
0:02:37.5]} 13. d3 {[%clk 0:02:37.8]} 13... Qd4+ {[%clk 0:02:32.3]} 14. Kh1
{[%clk 0:02:37.6]} 14... O-O {[%clk 0:02:29.3]} 15. Qe2 {[%clk 0:02:34.4]} 15...
Ng4 {[%clk 0:02:06.4]} 16. h3 {[%clk 0:01:54.5]} 16... Rxf1+ {[%clk 0:01:47.4]}
17. Qxf1 {[%clk 0:01:55.4]} 17... Rf8 {[%clk 0:01:44.1]} 18. Qe1 {[%clk
0:01:55.6]} 18... Nf2+ {[%clk 0:00:56]} 19. Kh2 {[%clk 0:01:55.2]} 19... e4
{[%clk 0:00:55.6]} 20. Be3 {[%clk 0:01:37.9]} 20... Qe5+ {[%clk 0:00:55.6]} 21.
g3 {[%clk 0:01:38]} 21... Nxh3 {[%clk 0:00:49.9]} 22. Kxh3 {[%clk 0:01:33.7]}
22... Qh5+ {[%clk 0:00:49.3]} 23. Kg2 {[%clk 0:01:30.7]} 23... Qf3+ {[%clk
0:00:49.1]} 24. Kh2 {[%clk 0:01:29.9]} 24... Rf5 {[%clk 0:00:44.6]} 25. g4
{[%clk 0:01:14.8]} 25... Be5+ {[%clk 0:00:36.5]} 0-1

[Event "Early-Titled-Tuesday-Blitz-April-23-2024"]
[Site "Chess.com"]
[Date "2024.04.23"]
[Round "7"]
[White "SpongeBob_03"]
[Black "Ramu_K_FM_FT"]
[Result "1-0"]
[WhiteElo "2267"]
[BlackElo "2122"]
[TimeControl "180+1"]
[EndTime "9:17:59 PDT"]
[Termination "SpongeBob_03 won by resignation"]

1. d4 {[%clk 0:03:00.9]} 1... Nf6 {[%clk 0:02:56.2]} 2. c4 {[%clk 0:02:59.9]}
2... g6 {[%clk 0:02:35.1]} 3. g3 {[%clk 0:02:58.3]} 3... Bg7 {[%clk 0:02:33.7]}
4. Bg2 {[%clk 0:02:59.2]} 4... d6 {[%clk 0:02:31.9]} 5. Nc3 {[%clk 0:02:58.6]}
5... O-O {[%clk 0:02:29.8]} 6. e3 {[%clk 0:02:55.9]} 6... Nbd7 {[%clk
0:02:24.9]} 7. Nge2 {[%clk 0:02:55.1]} 7... e5 {[%clk 0:02:21.9]} 8. O-O {[%clk
0:02:53.1]} 8... Qe7 {[%clk 0:02:17]} 9. f4 {[%clk 0:02:51.5]} 9... Re8 {[%clk
0:01:31]} 10. Qc2 {[%clk 0:02:31.9]} 10... Nf8 {[%clk 0:00:56.1]} 11. fxe5
{[%clk 0:02:14.8]} 11... dxe5 {[%clk 0:00:53.3]} 12. Rxf6 {[%clk 0:02:15.7]}
12... Bxf6 {[%clk 0:00:38.3]} 13. Nd5 {[%clk 0:02:16.3]} 13... Qd8 {[%clk
0:00:37.9]} 14. b3 {[%clk 0:02:06.6]} 14... c6 {[%clk 0:00:36.9]} 15. Nxf6+
{[%clk 0:02:06.2]} 15... Qxf6 {[%clk 0:00:37.8]} 16. Bb2 {[%clk 0:02:07.1]}
16... Nd7 {[%clk 0:00:34.4]} 17. Rf1 {[%clk 0:02:06]} 17... Qe7 {[%clk 0:00:34]}
18. d5 {[%clk 0:01:46.8]} 18... cxd5 {[%clk 0:00:27.7]} 19. Bxd5 {[%clk
0:01:47.7]} 19... Nb6 {[%clk 0:00:27.7]} 20. Rxf7 {[%clk 0:01:39.6]} 20... Qd6
{[%clk 0:00:22.3]} 21. Rf6+ {[%clk 0:01:36.2]} 1-0

[Event "Early-Titled-Tuesday-Blitz-April-23-2024"]
[Site "Chess.com"]
[Date "2024.04.23"]
[Round "7"]
[White "szachuspl"]
[Black "zurzan"]
[Result "1-0"]
[WhiteElo "2538"]
[BlackElo "2135"]
[TimeControl "180+1"]
[EndTime "9:18:05 PDT"]
[Termination "szachuspl won by resignation"]

1. d4 {[%clk 0:03:00.9]} 1... Nf6 {[%clk 0:02:58.7]} 2. c4 {[%clk 0:03:00.7]}
2... g6 {[%clk 0:02:59.2]} 3. Nc3 {[%clk 0:03:00.6]} 3... Bg7 {[%clk 0:02:59.7]}
4. e4 {[%clk 0:03:00.4]} 4... O-O {[%clk 0:03:00.3]} 5. Be2 {[%clk 0:03:01]}
5... d6 {[%clk 0:03:00.7]} 6. Bg5 {[%clk 0:03:01.2]} 6... Nbd7 {[%clk
0:02:56.5]} 7. Qd2 {[%clk 0:03:00.9]} 7... c5 {[%clk 0:02:54.8]} 8. d5 {[%clk
0:03:01.1]} 8... a6 {[%clk 0:02:52.5]} 9. a4 {[%clk 0:03:01]} 9... Qe8 {[%clk
0:02:40.6]} 10. h3 {[%clk 0:03:00.5]} 10... e6 {[%clk 0:02:40.7]} 11. Nf3 {[%clk
0:02:54.1]} 11... exd5 {[%clk 0:02:39.7]} 12. exd5 {[%clk 0:02:54.7]} 12... Ne4
{[%clk 0:02:33.3]} 13. Nxe4 {[%clk 0:02:53.5]} 13... Qxe4 {[%clk 0:02:34.2]} 14.
O-O {[%clk 0:02:53.1]} 14... Nb6 {[%clk 0:02:05.9]} 15. Bd3 {[%clk 0:02:47.2]}
15... Qe8 {[%clk 0:01:58.4]} 16. Rfe1 {[%clk 0:02:46]} 16... Be5 {[%clk
0:01:49.1]} 17. Nxe5 {[%clk 0:02:41.8]} 17... dxe5 {[%clk 0:01:50]} 18. Bh6
{[%clk 0:02:39.2]} 18... Nxa4 {[%clk 0:01:36.8]} 19. Bxf8 {[%clk 0:02:35]} 19...
Kxf8 {[%clk 0:01:32.4]} 20. f4 {[%clk 0:02:30.3]} 20... f6 {[%clk 0:01:30.5]}
21. fxe5 {[%clk 0:02:30.1]} 21... fxe5 {[%clk 0:01:30.2]} 22. Qa5 {[%clk
0:02:13.2]} 22... Nxb2 {[%clk 0:01:17.2]} 23. Qxc5+ {[%clk 0:02:12.2]} 23... Kg8
{[%clk 0:01:16.9]} 24. Bf1 {[%clk 0:02:11.9]} 24... Bf5 {[%clk 0:01:10.1]} 25.
Re3 {[%clk 0:02:04.9]} 25... Rc8 {[%clk 0:01:07]} 26. Qb4 {[%clk 0:02:04.5]}
26... b5 {[%clk 0:00:35.8]} 27. cxb5 {[%clk 0:01:59.7]} 27... Rc2 {[%clk
0:00:28.5]} 28. bxa6 {[%clk 0:01:57.7]} 28... Qd8 {[%clk 0:00:11.7]} 29. a7
{[%clk 0:01:53.8]} 29... Bxh3 {[%clk 0:00:11.3]} 30. a8=Q {[%clk 0:01:52]} 30...
Rxg2+ {[%clk 0:00:07.3]} 31. Bxg2 {[%clk 0:01:51.5]} 1-0

[Event "Early-Titled-Tuesday-Blitz-April-23-2024"]
[Site "Chess.com"]
[Date "2024.04.23"]
[Round "7"]
[White "Manukyan_Artak"]
[Black "ZachHKL"]
[Result "1-0"]
[WhiteElo "2463"]
[BlackElo "2304"]
[TimeControl "180+1"]
[EndTime "9:18:06 PDT"]
[Termination "Manukyan_Artak won by resignation"]

1. e4 {[%clk 0:02:47.9]} 1... c5 {[%clk 0:02:59.4]} 2. Nf3 {[%clk 0:02:47.5]}
2... d6 {[%clk 0:02:58.4]} 3. Bb5+ {[%clk 0:02:46.7]} 3... Nc6 {[%clk
0:02:57.6]} 4. O-O {[%clk 0:02:44.4]} 4... Bd7 {[%clk 0:02:57.7]} 5. c3 {[%clk
0:02:35.8]} 5... a6 {[%clk 0:02:55.5]} 6. Bxc6 {[%clk 0:02:26.5]} 6... Bxc6
{[%clk 0:02:55.4]} 7. Re1 {[%clk 0:02:26.3]} 7... Nf6 {[%clk 0:02:55.1]} 8. d4
{[%clk 0:02:23.2]} 8... cxd4 {[%clk 0:02:54.2]} 9. cxd4 {[%clk 0:02:23.1]} 9...
Bxe4 {[%clk 0:02:50.5]} 10. Bg5 {[%clk 0:02:21.5]} 10... Bc6 {[%clk 0:02:43.5]}
11. Bxf6 {[%clk 0:02:20.3]} 11... gxf6 {[%clk 0:02:43.4]} 12. d5 {[%clk
0:02:19]} 12... Bd7 {[%clk 0:02:42.5]} 13. Nd4 {[%clk 0:02:16.3]} 13... Rg8
{[%clk 0:02:39.7]} 14. Qh5 {[%clk 0:02:00.3]} 14... Qb6 {[%clk 0:02:34.7]} 15.
Ne6 {[%clk 0:01:55.7]} 15... Rc8 {[%clk 0:02:13.6]} 16. Nc3 {[%clk 0:01:49.9]}
16... Rg6 {[%clk 0:01:54.6]} 17. Qxh7 {[%clk 0:01:38.6]} 17... f5 {[%clk
0:00:53.2]} 18. Nxf8 {[%clk 0:01:25.7]} 18... Kxf8 {[%clk 0:00:52]} 19. Qh8+
{[%clk 0:01:23.5]} 19... Rg8 {[%clk 0:00:51.8]} 20. Qh4 {[%clk 0:01:24.1]} 20...
Re8 {[%clk 0:00:44.1]} 21. Re2 {[%clk 0:01:21.7]} 21... Rg4 {[%clk 0:00:40.9]}
22. Qh8+ {[%clk 0:01:20.4]} 22... Rg8 {[%clk 0:00:40.2]} 23. Qh6+ {[%clk
0:01:20.6]} 23... Rg7 {[%clk 0:00:40.9]} 24. Rae1 {[%clk 0:01:20]} 24... Qd4
{[%clk 0:00:37.6]} 25. Qh8+ {[%clk 0:01:18]} 1-0